fUSD/lending_fUSD_20240519
["ID","MTS","AMOUNT","RATE_DAILY","PERIOD"]
[327486675,1716115840146,-1000.0,0.00026663,2]
[327486676,1716115840160,-500.0,0.00026663,2]
[327486677,1716115840169,-500.0,0.00026664,2]
[327486678,1716115840180,-200.0,0.00026664,2]
[327486679,1716115840190,-490.63778216,0.00026664,2]
[327486907,1716115843076,-509.36221784,0.00026664,2]
[327486909,1716115843088,-900.66194748,0.00026664,2]
[327486924,1716115843225,-99.33805252,0.00026664,2]
[327486927,1716115843236,-200.0,0.00026664,2]
[327486930,1716115843246,-500.0,0.00026664,2]
[327486933,1716115843256,-500.0,0.00026664,2]
[327486935,1716115843265,-200.0,0.00026664,2]
[327486938,1716115843275,-322.03836439,0.00026678,2]
[327486940,1716115843285,-7500.0,0.00026679,2]
[327486943,1716115843295,-3536.50652619,0.0002668,2]
[327486972,1716115843508,-12401.51037381,0.0002668,2]
[327486975,1716115843518,-1973.5544,0.0002668,2]
[327486980,1716115843528,-151.65055707,0.0002668,2]
[327486985,1716115843538,-10072.36372965,0.0002668,2]
[327486989,1716115843547,-45278.2487,0.0002668,2]
[327486992,1716115843557,-871.41310384,0.0002668,2]
[327486994,1716115843567,-176.48403997,0.0002668,2]
[327486997,1716115843576,-204.60239216,0.0002668,2]
[327487000,1716115843585,-158.05,0.00026683,2]
[327487003,1716115843595,-183.27059638,0.00026692,2]
[327487005,1716115843604,-157.66911423,0.00026693,2]
[327487007,1716115843614,-28579.45950074,0.000267,2]
[327487080,1716115844215,-1038.06832726,0.000267,2]
[327487082,1716115844225,-157.051919,0.00026718,4]
[327487084,1716115844234,-157.051919,0.00026728,4]
[327487086,1716115844243,-157.051919,0.00026738,8]
[327487088,1716115844253,-603.0143,0.00026745,2]
[327487090,1716115844262,-157.051919,0.00026748,8]
[327487092,1716115844272,-307.55,0.00026754,2]
[327487094,1716115844281,-157.051919,0.00026758,8]
[327487096,1716115844290,-1272.96873277,0.0002676,2]
[327487098,1716115844302,-15879.16435311,0.0002676,2]
[327487103,1716115844333,-49479.25457494,0.0002676,2]
[327487105,1716115844342,-3147.0,0.00026767,2]
[327487106,1716115844351,-3269.0,0.00026767,2]
[327487108,1716115844360,-158.05,0.00026768,2]
[327487110,1716115844370,-162.7521184,0.0002677,2]
[327487113,1716115844379,-155.0,0.00026777,2]
[327487115,1716115844389,-268.16087153,0.00026778,2]
[327487116,1716115844399,-276.75517959,0.00026778,2]
[327487118,1716115844408,-200.84001828,0.00026778,2]
[327487121,1716115844417,-165.91738265,0.00026778,2]
[327487123,1716115844427,-1213.37270844,0.00026778,2]
[327487125,1716115844436,-3961.82198228,0.00026778,2]
[327487127,1716115844445,-364.76433642,0.00026778,2]
[327487128,1716115844454,-155.0,0.00026778,2]
[327487130,1716115844464,-181.29788502,0.00026778,2]
[327487134,1716115844473,-155.87069556,0.00026778,2]
[327487136,1716115844482,-712.47939851,0.00026778,2]
[327487138,1716115844491,-155.25632263,0.00026778,2]
[327487140,1716115844500,-221.89181166,0.00026778,2]
[327487142,1716115844510,-410.2190037,0.00026778,2]
[327487144,1716115844519,-155.0,0.00026778,2]
[327487145,1716115844528,-360.30276025,0.00026778,10]
[327487147,1716115844537,-237.10219524,0.00026778,2]
[327487149,1716115844546,-163.09696048,0.00026778,2]
[327487151,1716115844555,-192.61968187,0.00026778,2]
[327487153,1716115844564,-155.15682615,0.00026778,2]
[327487155,1716115844573,-4425.44526103,0.00026778,2]
[327487157,1716115844583,-187038.84575558,0.00026778,2]
[327487159,1716115844593,-789.21148886,0.00026778,2]
[327487162,1716115844603,-502.61297714,0.00026778,2]
[327487164,1716115844612,-205.2970984,0.00026778,2]
[327487166,1716115844621,-624.04,0.00026778,2]
[327487167,1716115844629,-3269.89847617,0.00026779,2]
[327487169,1716115844638,-500.0,0.00026779,3]
[327487171,1716115844648,-895229.65931593,0.0002678,13]
[327487174,1716115844658,-1693372.24198866,0.0002678,2]
[327487178,1716115844694,-1476.33335584,0.0002678,2]
[327487570,1716115848109,-501.76160351,0.00026776,2]
[327487572,1716115848118,-2890.34366373,0.0002678,2]
[327487584,1716115848222,-14174.89096321,0.0002678,2]
[327487586,1716115848235,-8470.75655396,0.0002678,2]
[327487588,1716115848247,-2717.75865294,0.0002678,2]
[327487598,1716115848334,-2580.16100442,0.0002678,2]
[327487601,1716115848353,-1742.20540426,0.0002678,2]
[327487781,1716115856255,176.56446522,0.00017259,2]
[327487782,1716115858767,180.13384001,0.00018,2]
[327487783,1716115983729,155.0,0.00017259,2]
[327487784,1716116076389,3701.04,0.00017259,2]
[327487792,1716116208873,175.37,0.00025063,120]
[327487794,1716116357160,182.55,0.00013973,2]
[327487795,1716116417308,155.0,0.00017259,2]
[327487796,1716116493641,974.03230989,0.000173,2]
[327487797,1716116703610,250.53997363,0.000173,2]
[327487798,1716116813576,159.64,0.00013973,2]
[327487800,1716116871451,696.81,0.00028,30]
[327487807,1716117008548,229.4,0.00028,30]
[327487815,1716117033802,-182.55,0.00020447,2]
[327487816,1716117033812,-180.65539468,0.000214,2]
[327487826,1716117034100,-307.34460532,0.000214,2]
[327487828,1716117034110,-152.0004068,0.00021837,2]
[327487829,1716117034119,-150.0,0.000223,3]
[327487831,1716117034128,-1091.8,0.00022324,2]
[327487832,1716117034138,-150.0,0.000228,3]
[327487833,1716117034147,-150.0,0.00023,2]
[327487834,1716117034156,-153.42116949,0.00023147,2]
[327487836,1716117034165,-150.0,0.000233,3]
[327487838,1716117034174,-150.0,0.000238,4]
[327487840,1716117034184,-150.0,0.00024,2]
[327487842,1716117034193,-79.94663163,0.00024052,2]
[327487844,1716117034204,-235.33336837,0.00024052,2]
[327487846,1716117034214,-606.52,0.00024093,2]
[327487847,1716117034223,-315.28,0.00024118,2]
[327487849,1716117034232,-250.0,0.00024173,2]
[327487850,1716117034242,-250.0,0.00024176,2]
[327487851,1716117034251,-315.28,0.00024184,2]
[327487852,1716117034260,-360.87,0.00024221,2]
[327487853,1716117034270,-315.28,0.0002425,2]
[327487854,1716117034279,-500.0,0.00024261,2]
[327487855,1716117034288,-150.0,0.000243,4]
[327487856,1716117034298,-315.28,0.00024316,2]
[327487857,1716117034306,-315.28,0.00024382,2]
[327487858,1716117034316,-150.0,0.00024418,2]
[327487859,1716117034325,-1394.88,0.00024424,2]
[327487860,1716117034334,-315.28,0.00024448,2]
[327487861,1716117034344,-315.28,0.00024514,2]
[327487862,1716117034354,-315.28,0.0002458,2]
[327487863,1716117034363,-325.35663163,0.00024588,2]
[327487864,1716117034375,-766.44336837,0.00024588,2]
[327487865,1716117034384,-16.70452664,0.00024646,2]
[327487866,1716117034395,-298.57547336,0.00024646,2]
[327487867,1716117034404,-82.2543412,0.00024656,2]
[327487868,1716117034470,-917.7456588,0.00024656,2]
[327487869,1716117034479,-200.0,0.00024658,7]
[327487870,1716117034488,-315.28,0.00024712,2]
[327487871,1716117034506,-315.28,0.00024778,2]
[327487872,1716117034515,-150.0,0.000248,4]
[327487873,1716117034524,-315.28,0.00024843,2]
[327487874,1716117034533,-315.28,0.00024909,2]
[327487875,1716117034546,-315.28,0.00024975,2]
[327487876,1716117034555,-150.0,0.00024989,2]
[327487877,1716117034564,-150.0,0.00025,2]
[327487878,1716117034574,-315.28,0.00025041,2]
[327487879,1716117034583,-599.46,0.00025063,2]
[327487880,1716117034594,-599.46,0.0002507,2]
[327487881,1716117034604,-599.46,0.00025076,2]
[327487882,1716117034613,-599.46,0.00025083,2]
[327487883,1716117034622,-599.46,0.0002509,2]
[327487884,1716117034631,-599.46,0.00025096,2]
[327487885,1716117034640,-599.46,0.00025103,2]
[327487886,1716117034649,-315.28,0.00025107,2]
[327487887,1716117034659,-599.46,0.00025109,2]
[327487888,1716117034668,-599.46,0.00025116,2]
[327487889,1716117034677,-599.46,0.00025123,2]
[327487890,1716117034686,-599.46,0.00025129,2]
[327487891,1716117034695,-599.46,0.00025136,2]
[327487892,1716117034704,-599.46,0.00025143,2]
[327487893,1716117034713,-599.46,0.00025149,2]
[327487894,1716117034723,-599.46,0.00025156,2]
[327487895,1716117034731,-599.46,0.00025162,2]
[327487896,1716117034740,-599.46,0.00025169,2]
[327487897,1716117034749,-315.28,0.00025173,2]
[327487898,1716117034758,-386.76479206,0.00025176,2]
[327487899,1716117034770,-212.69520794,0.00025176,2]
[327487900,1716117034779,-54.25774109,0.00025182,2]
[327487901,1716117034790,-545.20225891,0.00025182,2]
[327487902,1716117034799,-599.46,0.00025189,2]
[327487903,1716117034808,-315.28,0.00025239,2]
[327487904,1716117034818,-268.23466305,0.0002526,2]
[327487905,1716117034829,-531.76533695,0.0002526,2]
[327487906,1716117034838,-150.0,0.000253,4]
[327487907,1716117034849,-315.28,0.00025305,2]
[327487908,1716117034859,-415.41,0.00025516,2]
[327487909,1716117034868,-150.0,0.000258,4]
[327487910,1716117034877,-415.41,0.00025808,2]
[327487911,1716117034887,-415.41,0.00025808,2]
[327487912,1716117034896,-415.41,0.00025808,2]
[327487913,1716117034905,-398.69,0.00025808,2]
[327487914,1716117034915,-150.27,0.0002589,2]
[327487915,1716117034924,-213039.34335331,0.00025944,2]
[327487916,1716117034933,-163.42,0.00025945,2]
[327487917,1716117034943,-1046.16,0.00025945,2]
[327487918,1716117034952,-163.42,0.00025945,2]
[327487919,1716117034961,-163.42,0.00025945,2]
[327487920,1716117034970,-163.42,0.00025945,2]
[327487921,1716117034979,-163.42,0.00025945,2]
[327487922,1716117034989,-161.86,0.00025945,2]
[327487923,1716117034998,-5919.91156358,0.00025998,2]
[327487924,1716117035007,-150.0,0.00026,2]
[327487925,1716117035017,-1345.40040239,0.00026,2]
[327487926,1716117035027,-69463.17672435,0.00026,2]
[327487927,1716117035036,-5866.9733596,0.00026027,7]
[327487928,1716117035045,-1176.79,0.00026082,2]
[327487929,1716117035055,-600.0,0.000263,9]
[327487930,1716117035064,-150.0,0.000263,5]
[327487931,1716117035073,-219.0,0.00026327,2]
[327487932,1716117035083,-3158.0,0.00026327,2]
[327487933,1716117035094,-1160.684,0.00026327,2]
[327487934,1716117035103,-13075.00361176,0.00026331,2]
[327487935,1716117035114,-6893.37913532,0.00026331,2]
[327487936,1716117035125,-528.592,0.00026331,2]
[327487937,1716117035137,-670.28116184,0.00026331,2]
[327487938,1716117035148,-561.51132701,0.00026331,2]
[327487939,1716117035160,-655.60712406,0.00026331,2]
[327487940,1716117035171,-1865.69249295,0.00026331,2]
[327487947,1716117037735,-338.72,0.00026331,2]
[327487948,1716117037864,-383.79414706,0.00026331,2]
[327487949,1716117037874,-1464.0,0.00026331,2]
[327487950,1716117037884,-288.0,0.00026331,2]
[327487951,1716117037893,-739.24777184,0.00026331,2]
[327487952,1716117037997,-585.89428871,0.00026331,2]
[327487953,1716117038009,-3206.57893945,0.00026331,2]
[327487954,1716117038019,-218.961,0.00026331,2]
[327487955,1716117038028,-1200.0,0.000264,9]
[327487956,1716117038038,-150.0,0.00026431,2]
[327487957,1716117038047,-174.0929,0.0002648,2]
[327487958,1716117038058,-193.4638,0.0002648,2]
[327487959,1716117038067,-1000.0,0.0002648,2]
[327487960,1716117038077,-2500.0,0.0002648,2]
[327487961,1716117038086,-1800.0,0.000265,9]
[327487962,1716117038096,-354.35929,0.0002651,2]
[327487963,1716117038105,-150.0,0.00026513,2]
[327487964,1716117038115,-7500.0,0.00026556,2]
[327487965,1716117038124,-158.1949,0.00026578,2]
[327487966,1716117038134,-166.59715923,0.00026579,2]
[327487967,1716117038144,-322.03836439,0.00026579,2]
[327487968,1716117038154,-469.4591,0.0002658,2]
[327487969,1716117038163,-368.127,0.0002658,2]
[327487970,1716117038173,-120421.9309,0.0002658,2]
[327487971,1716117038182,-180.0,0.0002659,2]
[327487972,1716117038192,-2400.0,0.000266,9]
[327487973,1716117038201,-166.063965,0.000266,2]
[327487974,1716117038210,-166.59715921,0.00026613,2]
[327487975,1716117038220,-166.59715921,0.00026646,2]
[327487976,1716117038229,-150.0,0.00026654,2]
[327487978,1716117038238,-200.0,0.00026663,2]
[327487979,1716117038248,-500.0,0.00026663,2]
[327487981,1716117038257,-200.0,0.00026664,2]
[327487983,1716117038267,-1000.0,0.00026664,2]
[327487986,1716117038276,-500.0,0.00026664,2]
[327487987,1716117038285,-6754.5911,0.00026667,2]
[327487989,1716117038295,-165.17255467,0.0002667,2]
[327487991,1716117038304,-1000.0,0.00026678,2]
[327487994,1716117038314,-165.1494,0.00026679,2]
[327487996,1716117038324,-100000.0,0.00026679,2]
[327487998,1716117038333,-70695.0675,0.00026679,2]
[327488000,1716117038343,-419.2419409,0.00026679,2]
[327488002,1716117038353,-151.65055707,0.0002668,2]
[327488004,1716117038362,-160.4162,0.0002668,2]
[327488005,1716117038371,-17994.3830376,0.0002668,2]
[327488007,1716117038380,-166.59715921,0.0002668,2]
[327488009,1716117038389,-176.48403997,0.0002668,2]
[327488011,1716117038398,-166.063965,0.0002668,2]
[327488013,1716117038409,-1288.9770844,0.0002668,2]
[327488015,1716117038418,-5392.90398899,0.000267,2]
[327488017,1716117038428,-2241.83925245,0.000267,9]
[327488021,1716117038459,-655.43396062,0.000267,9]
[327488023,1716117038470,-102.72678693,0.000267,9]
[327488024,1716117038480,-303.42093187,0.000267,2]
[327488026,1716117038490,-69024.16607515,0.000267,2]
[327488182,1716117040326,-15693.75000001,0.000267,2]
[327488184,1716117040338,-7838.29634875,0.000267,2]
[327488186,1716117040350,-42996.95725633,0.000267,3]
[327488188,1716117040360,-281.4754584,0.000267,2]
[327488190,1716117040369,-150.0,0.00026707,2]
[327488192,1716117040379,-150.0,0.0002672,2]
[327488194,1716117040389,-150.0,0.00026764,2]
[327488196,1716117040399,-181.39,0.0002677,2]
[327488198,1716117040410,-181.39,0.0002677,2]
[327488200,1716117040420,-597.0,0.00026777,2]
[327488202,1716117040430,-5900.0,0.00026777,7]
[327488204,1716117040440,-2500.0,0.00026778,3]
[327488206,1716117040450,-317.77309168,0.00026779,2]
[327488208,1716117040460,-86.95950979,0.0002678,13]
[327488211,1716117040480,-20226.00000001,0.0002678,13]
[327488257,1716117042976,-179212.78025591,0.0002678,13]
[327488258,1716117043101,-2824.32343534,0.0002678,13]
[327488272,1716117047440,-45801.40074428,0.0002678,13]
[327488273,1716117047744,-465.85400496,0.00026779,2]
[327488275,1716117047756,-597.79259178,0.00026779,2]
[327488276,1716117047766,-175.80740822,0.0002678,13]
[327488277,1716117047777,-1783.50901244,0.0002678,13]
[327488278,1716117047788,-4035.0,0.0002678,13]
[327488279,1716117047799,-2418.75,0.0002678,13]
[327488281,1716117104983,176.56446522,0.00017259,2]
[327488283,1716117247067,281.8,0.00025622,120]
[327488287,1716117786609,4216.97445292,0.00028,30]
[327488288,1716117883111,666.88,0.00017259,2]
[327488298,1716118232047,-339.0,0.000215,2]
[327488299,1716118232057,-1076.06371918,0.0002309,2]
[327488300,1716118232073,-41.93628082,0.0002309,2]
[327488302,1716118232082,-200.0,0.00024658,7]
[327488304,1716118232092,-250.0,0.00024826,2]
[327488305,1716118232101,-250.0,0.00024835,2]
[327488307,1716118232113,-1103.75,0.00024844,2]
[327488308,1716118232122,-184.13572106,0.00024868,2]
[327488309,1716118232133,-615.77052,0.00024868,2]
[327488310,1716118232145,-268.00375894,0.00024868,2]
[327488311,1716118232154,-506.83,0.00025043,2]
[327488312,1716118232163,-154.95007226,0.00025044,2]
[327488313,1716118232172,-231.63,0.00025204,7]
[327488314,1716118232181,-94.2598288,0.00025204,2]
[327488315,1716118232193,-210.1701712,0.00025204,2]
[327488316,1716118232202,-3636.5731,0.00025254,2]
[327488317,1716118232211,-176.152983,0.000253,4]
[327488318,1716118232221,-877.14884721,0.00025354,2]
[327488319,1716118232233,-240.85115279,0.00025354,2]
[327488320,1716118232242,-873.06756207,0.00025495,2]
[327488321,1716118232254,-126.93243793,0.00025495,2]
[327488322,1716118232264,-150.0,0.000258,4]
[327488323,1716118232274,-721.65512522,0.00026027,7]
[327488324,1716118232285,-550.46035353,0.00026027,7]
[327488325,1716118232312,-265.10453893,0.00026027,7]
[327488326,1716118232323,-656.57318098,0.00026027,7]
[327488327,1716118232333,-150.27,0.00026131,2]
[327488328,1716118232342,-750.5394,0.000263,2]
[327488329,1716118232351,-150.0,0.000263,5]
[327488330,1716118232360,-208.36741902,0.00026378,2]
[327488331,1716118232373,-791.63258098,0.00026378,2]
[327488332,1716118232383,-439.619,0.00026378,2]
[327488333,1716118232394,-1000.0,0.0002638,2]
[327488334,1716118232403,-3960.35016208,0.0002638,2]
[327488335,1716118232415,-1240.97323792,0.0002638,2]
[327488336,1716118232425,-7500.0,0.0002638,2]
[327488337,1716118232436,-180.98960819,0.00026388,2]
[327488338,1716118232446,-1030.38846551,0.0002639,2]
[327488340,1716118232455,-22797.40207474,0.000264,2]
[327488342,1716118232467,-340.53742862,0.000264,2]
[327488344,1716118232478,-357.905496,0.000264,2]
[327488357,1716118240415,-33407.40087675,0.000264,2]
[327488358,1716118240427,-5498.26772479,0.000264,2]
[327488359,1716118240439,-37598.4863991,0.000264,2]
[327488360,1716118240449,-57924.67867544,0.0002641,2]
[327488361,1716118240459,-201.91969004,0.00026478,2]
[327488362,1716118240469,-155.0,0.00026478,2]
[327488363,1716118240478,-656.01389756,0.00026478,2]
[327488364,1716118240488,-409.26681316,0.00026478,2]
[327488365,1716118240498,-155.0,0.00026478,2]
[327488366,1716118240508,-11733.9768765,0.00026478,2]
[327488367,1716118240519,-229.45429058,0.00026479,10]
[327488368,1716118240529,-1564.36069654,0.00026479,2]
[327488369,1716118240539,-35700.684929,0.0002648,2]
[327488370,1716118240551,-609.31291291,0.0002648,2]
[327488371,1716118240562,-22368.276,0.0002648,2]
[327488373,1716118240875,-569.44888,0.0002648,2]
[327488375,1716118240887,-17100.0,0.0002648,2]
[327488377,1716118240900,-1589.5,0.0002648,2]
[327488379,1716118240914,-129886.45567809,0.0002648,2]
[327488380,1716118240925,-180.19886854,0.00026512,2]
[327488381,1716118240936,-57924.67867544,0.00026576,2]
[327488382,1716118240946,-172.75358873,0.0002658,2]
[327488383,1716118240956,-1024.27554708,0.000266,2]
[327488384,1716118240966,-172.75358873,0.00026613,2]
[327488385,1716118240975,-200.0,0.00026631,2]
[327488386,1716118240985,-172.75358873,0.00026647,2]
[327488387,1716118240995,-1000.0,0.00026663,2]
[327488388,1716118241005,-200.0,0.00026664,2]
[327488389,1716118241015,-1000.0,0.00026664,2]
[327488390,1716118241025,-500.0,0.00026664,2]
[327488391,1716118241035,-322.03836439,0.00026678,2]
[327488392,1716118241046,-151.65055707,0.0002668,2]
[327488393,1716118241055,-10000.0,0.0002668,2]
[327488394,1716118241065,-22061.8720968,0.0002668,2]
[327488395,1716118241074,-172.75358873,0.0002668,2]
[327488396,1716118241084,-176.48403997,0.0002668,2]
[327488397,1716118241094,-1144.08820673,0.000267,7]
[327488398,1716118241106,-395.87250576,0.000267,7]
[327488399,1716118241118,-460.72551053,0.000267,7]
[327488401,1716118241130,-475.95319646,0.000267,7]
[327488405,1716118241167,-4422.24110252,0.000267,7]
[327488406,1716118241177,-1367.81695102,0.000267,2]
[327488407,1716118241189,-141.18304898,0.000267,2]
[327488408,1716118241199,-57924.67867544,0.00026741,2]
[327488409,1716118241209,-9127.80873987,0.0002677,2]
[327488410,1716118241221,-19853.54755817,0.0002677,2]
[327488411,1716118241232,-334.13536002,0.0002677,2]
[327488412,1716118241244,-780.33589964,0.0002677,2]
[327488413,1716118241253,-255.90861087,0.00026778,7]
[327488414,1716118241265,-3804.36369245,0.00026778,7]
[327488415,1716118241277,-1839.72769668,0.00026778,7]
[327488417,1716118241287,-1000.0,0.00026778,3]
[327488418,1716118241296,-28339.8218049,0.00026779,2]
[327488419,1716118241328,-1474.5755582,0.00026779,2]
[327488427,1716118243133,-9556.71327628,0.00026779,2]
[327488444,1716118243356,-536.54750448,0.00026779,2]
[327488445,1716118243369,-7304.24185614,0.00026779,2]
[327488446,1716118243378,-607.25304373,0.00026779,2]
[327488447,1716118243388,-585.0,0.00026779,2]
[327488448,1716118243397,-54.61665886,0.00026779,2]
[327488449,1716118243616,-153.41960931,0.00026779,2]
[327488450,1716118243627,-4823.23736448,0.00026779,2]
[327488451,1716118243638,-1803.5083,0.00026779,2]
[327488452,1716118243648,-28941.04248209,0.0002678,13]
[327488453,1716118243660,-6330.93936769,0.0002678,13]
[327488454,1716118243672,-266.85514883,0.0002678,13]
[327488469,1716118246212,-2405.09998,0.0002678,13]
[327488470,1716118246225,-547.84176427,0.0002678,13]
[327488471,1716118246464,-80285.33989437,0.0002678,13]
[327488473,1716118246480,-7961.8201508,0.0002678,13]
[327488474,1716118246492,-131917.9999999,0.0002678,13]
[327488475,1716118251103,175.37,0.00026031,120]
[327488476,1716118320752,446.54380812,0.00017259,2]
[327488489,1716118745102,184.57,0.00025482,120]
[327488490,1716119077983,1588.87926743,0.00017259,2]
[327488491,1716119230622,225.44,0.00025288,120]
[327488492,1716119256997,164.29,0.00013973,2]
[327488521,1716119432118,-164.29,0.00020447,2]
[327488522,1716119432130,-215.75295626,0.00023534,2]
[327488523,1716119432233,-898.07704374,0.00023534,2]
[327488524,1716119432244,-250.58243994,0.00024658,7]
[327488525,1716119432254,-1426.6,0.00025242,2]
[327488526,1716119432264,-288.03678158,0.00025265,2]
[327488527,1716119432350,-2697.48051752,0.00025265,2]
[327488539,1716119438204,-3149.5827009,0.00025265,2]
[327488540,1716119438214,-1206.27,0.00025288,2]
[327488541,1716119438224,-250.0,0.00025295,2]
[327488542,1716119438233,-250.0,0.00025353,2]
[327488543,1716119438244,-816.38,0.00025482,2]
[327488544,1716119438254,-150.0,0.00025589,2]
[327488545,1716119438263,-390.5,0.00025733,2]
[327488546,1716119438275,-594.53,0.00025968,2]
[327488547,1716119438285,-461.89302296,0.00026379,2]
[327488548,1716119438294,-4012.2546184,0.0002638,2]
[327488549,1716119438305,-5140.3720589,0.0002638,2]
[327488550,1716119438431,-32623.13601012,0.0002638,2]
[327488558,1716119440212,-511.81449438,0.0002638,2]
[327488559,1716119440276,-434.48,0.0002638,2]
[327488561,1716119442827,-971.80096129,0.0002638,2]
[327488598,1716119443301,-41279.7680988,0.0002638,2]
[327488599,1716119443313,-25030.22235811,0.0002638,2]
[327488600,1716119443322,-500.0,0.00026479,2]
[327488601,1716119443331,-500.0,0.00026479,2]
[327488602,1716119443340,-1502.92358,0.0002651,2]
[327488603,1716119443351,-180.19886855,0.00026512,2]
[327488604,1716119443361,-1444.69704393,0.0002652,2]
[327488605,1716119443371,-150.27,0.00026529,2]
[327488606,1716119443380,-200.0,0.00026615,2]
[327488607,1716119443389,-1000.0,0.00026615,2]
[327488608,1716119443399,-500.0,0.00026615,2]
[327488609,1716119443408,-1000.0,0.0002668,2]
[327488610,1716119443418,-151.65055707,0.0002668,2]
[327488611,1716119443427,-20223.3827554,0.0002668,2]
[327488612,1716119443436,-153.55874553,0.0002668,2]
[327488613,1716119443446,-859.31805626,0.0002668,2]
[327488614,1716119443456,-322.03836439,0.0002668,2]
[327488615,1716119443465,-1081.06,0.00026699,2]
[327488616,1716119443475,-500.0,0.00026699,2]
[327488617,1716119443484,-229911.36297938,0.000267,2]
[327488618,1716119443534,-661.3131406,0.000267,2]
[327488623,1716119446145,-500.0,0.00026699,2]
[327488624,1716119446157,-1843.36758848,0.000267,2]
[327488625,1716119446272,-5189.61489262,0.000267,2]
[327488626,1716119446289,-433.0135771,0.000267,2]
[327488627,1716119446347,-3379.95064911,0.000267,2]
[327488638,1716119458790,5900.0,0.00017259,2]
[327488639,1716119605773,1292.85,0.00017259,2]
[327488640,1716119793048,159.64,0.00013973,2]
[327488642,1716120232334,175.37,0.00025268,120]
[327488656,1716120632227,-440.0,0.000216,2]
[327488657,1716120632236,-1107.27,0.00023477,2]
[327488658,1716120632246,-164.23776797,0.00023582,2]
[327488659,1716120632256,-312.95290944,0.00025158,2]
[327488660,1716120632268,-182.45109056,0.00025158,2]
[327488661,1716120632278,-250.0,0.00025285,2]
[327488662,1716120632287,-562.03215944,0.0002533,2]
[327488663,1716120632303,-388.35784056,0.0002533,2]
[327488664,1716120632312,-1000.0,0.00025372,2]
[327488665,1716120632322,-587.82985761,0.00025377,2]
[327488666,1716120632394,-1616.31417857,0.00025377,2]
[327488667,1716120632406,-8769.60922863,0.00025377,2]
[327488668,1716120632450,-732.11112739,0.00025377,2]
[327488669,1716120632462,-361.42672625,0.00025377,2]
[327488670,1716120632507,-322.05888155,0.00025377,2]
[327488671,1716120632518,-160.91,0.00025408,2]
[327488672,1716120632527,-350.53323147,0.00025741,2]
[327488673,1716120632539,-539.69020108,0.00025741,2]
[327488674,1716120632551,-217.04656745,0.00025741,2]
[327488675,1716120632561,-168.826785,0.00025753,2]
[327488676,1716120632571,-155.0,0.00026379,2]
[327488677,1716120632581,-428.58317292,0.000265,2]
[327488678,1716120632595,-3367.93087916,0.000265,2]
[327488679,1716120632606,-1169.32315803,0.000265,2]
[327488680,1716120632641,-542.48379929,0.000265,2]
[327488681,1716120632653,-7418.73,0.000265,2]
[327488682,1716120632667,-608.24202389,0.000265,2]
[327488695,1716120638435,-1513.60139933,0.000265,2]
[327488700,1716120638492,-486.83097929,0.000265,2]
[327488701,1716120638503,-324.95664198,0.000265,2]
[327488702,1716120638515,-396.96657,0.000265,2]
[327488703,1716120638600,-18818.52960502,0.000265,2]
[327488704,1716120638658,-1291.06,0.000265,2]
[327488705,1716120638711,-1310.44167261,0.000265,2]
[327488706,1716120638723,-1424.25263974,0.000265,2]
[327488707,1716120638822,-786.88685874,0.000265,2]
[327488708,1716120639030,-175.25644369,0.00026511,2]
[327488709,1716120639044,-1000.0,0.00026565,2]
[327488710,1716120639054,-160.492728,0.00026566,2]
[327488711,1716120639064,-1000.0,0.00026566,2]
[327488712,1716120639074,-500.0,0.00026566,2]
[327488713,1716120639083,-168.826785,0.00026575,2]
[327488714,1716120639092,-2746.0004,0.0002658,2]
[327488715,1716120639102,-1000.0,0.00026599,2]
[327488716,1716120639111,-155.19873687,0.00026599,2]
[327488717,1716120639121,-40567.77767017,0.00026599,2]